[Event "Titled Tuesday Blitz July 4 Early 2023"]
[White "Vokhidov, Shamsiddin"]
[Black "Xiong, Jeffery"]
[WhiteFideId "14204223"]
[BlackFideId "2047640"]
[WhiteElo "2938"]
[BlackElo "2942"]
[Result "1/2-1/2"]
[Round "11"]
[TimeControl "180+2"]
[Date "2023.07.04"]
[WhiteClock "0:00:38"]
[BlackClock "0:01:44"]
[Board "2"]

1. e4 {[%clk 0:03:00]}  e6 {[%clk 0:03:00]} 2. d4 {[%clk 0:03:01]}  d5 {[%clk 0:03:00]} 3. Nc3 {[%clk 0:03:01]}  Nf6 {[%clk 0:03:00]} 4. Bg5 {[%clk 0:03:01]}  dxe4 {[%clk 0:03:00]} 5. Nxe4 {[%clk 0:03:02]}  Be7 {[%clk 0:03:00]} 6. Nxf6+ {[%clk 0:03:02]}  Bxf6 {[%clk 0:03:00]} 7. Bxf6 {[%clk 0:03:02]}  Qxf6 {[%clk 0:03:01]} 8. Nf3 {[%clk 0:03:03]}  O-O {[%clk 0:03:01]} 9. Qd3 {[%clk 0:03:00]}  Nc6 {[%clk 0:03:01]} 10. Qe4 {[%clk 0:02:59]}  Qg6 {[%clk 0:02:45]} 11. Qxg6 {[%clk 0:02:57]}  hxg6 {[%clk 0:02:46]} 12. O-O-O {[%clk 0:02:57]}  b6 {[%clk 0:02:44]} 13. Bd3 {[%clk 0:02:49]}  Bb7 {[%clk 0:02:45]} 14. Be4 {[%clk 0:02:48]}  Rad8 {[%clk 0:02:41]} 15. Rhe1 {[%clk 0:02:44]}  Na5 {[%clk 0:02:41]} 16. Bxb7 {[%clk 0:02:42]}  Nxb7 {[%clk 0:02:42]} 17. Ne5 {[%clk 0:02:43]}  Rd6 {[%clk 0:02:41]} 18. c3 {[%clk 0:02:42]}  Rfd8 {[%clk 0:02:41]} 19. Kc2 {[%clk 0:02:42]}  g5 {[%clk 0:02:37]} 20. Rd3 {[%clk 0:02:37]}  Na5 {[%clk 0:02:36]} 21. b4 {[%clk 0:02:18]}  Nc6 {[%clk 0:02:36]} 22. Nxc6 {[%clk 0:02:13]}  Rxc6 {[%clk 0:02:37]} 23. Kb3 {[%clk 0:02:10]}  f6 {[%clk 0:02:36]} 24. a4 {[%clk 0:02:08]}  e5 {[%clk 0:02:35]} 25. d5 {[%clk 0:02:06]}  Rcd6 {[%clk 0:02:34]} 26. c4 {[%clk 0:02:06]}  c6 {[%clk 0:02:32]} 27. Red1 {[%clk 0:02:01]}  Kf7 {[%clk 0:02:32]} 28. Kc3 {[%clk 0:01:51]}  cxd5 {[%clk 0:02:30]} 29. cxd5 {[%clk 0:01:21]}  g4 {[%clk 0:02:24]} 30. Kc4 {[%clk 0:01:18]}  a6 {[%clk 0:02:24]} 31. Kb3 {[%clk 0:01:15]}  f5 {[%clk 0:02:23]} 32. b5 {[%clk 0:01:08]}  axb5 {[%clk 0:02:16]} 33. axb5 {[%clk 0:01:09]}  e4 {[%clk 0:02:16]} 34. Rd4 {[%clk 0:01:05]}  Kf6 {[%clk 0:02:16]} 35. Rc4 {[%clk 0:01:00]}  Rxd5 {[%clk 0:02:11]} 36. Rxd5 {[%clk 0:01:01]}  Rxd5 {[%clk 0:02:11]} 37. Rc6+ {[%clk 0:01:02]}  Ke7 {[%clk 0:02:12]} 38. Rxb6 {[%clk 0:01:03]}  Rd2 {[%clk 0:02:12]} 39. Rb7+ {[%clk 0:01:01]}  Kd6 {[%clk 0:02:12]} 40. b6 {[%clk 0:00:54]}  Kc6 {[%clk 0:02:11]} 41. Rf7 {[%clk 0:00:48]}  Kxb6 {[%clk 0:01:58]} 42. Rxf5 {[%clk 0:00:48]}  e3 {[%clk 0:01:59]} 43. fxe3 {[%clk 0:00:45]}  Rxg2 {[%clk 0:02:00]} 44. Rg5 {[%clk 0:00:40]}  Rxh2 {[%clk 0:01:59]} 45. Kc4 {[%clk 0:00:39]}  Kc6 {[%clk 0:01:45]} 46. Rxg4 {[%clk 0:00:37]}  Rd2 {[%clk 0:01:43]} 47. Rxg7 {[%clk 0:00:34]}  Kd6 {[%clk 0:01:44]} 48. Rg5 {[%clk 0:00:32]}  Ke6 {[%clk 0:01:44]} 49. Rg4 {[%clk 0:00:31]}  Ke5 {[%clk 0:01:43]} 50. Rd4 {[%clk 0:00:31]}  Rxd4+ {[%clk 0:01:38]} 51. exd4+ {[%clk 0:00:32]}  Kd6 {[%clk 0:01:39]} 52. d5 {[%clk 0:00:33]}  Kd7 {[%clk 0:01:39]} 53. Kc5 {[%clk 0:00:34]}  Kc7 {[%clk 0:01:40]} 54. d6+ {[%clk 0:00:34]}  Kd7 {[%clk 0:01:41]} 55. Kd5 {[%clk 0:00:35]}  Kd8 {[%clk 0:01:41]} 56. Ke6 {[%clk 0:00:36]}  Ke8 {[%clk 0:01:42]} 57. Ke5 {[%clk 0:00:36]}  Kd7 {[%clk 0:01:43]} 58. Kd5 {[%clk 0:00:36]}  Kd8 {[%clk 0:01:43]} 59. Kc6 {[%clk 0:00:37]}  Kc8 {[%clk 0:01:44]} 60. d7+ {[%clk 0:00:37]}  Kd8 {[%clk 0:01:44]} 61. Kd6 {[%clk 0:00:38]} 1/2-1/2


[Site "https://www.chess.com"]

[Event "Titled Tuesday Blitz July 4 Early 2023"]
[White "Svane, Rasmus"]
[Black "Sarana, Alexey"]
[WhiteFideId "4657101"]
[BlackFideId "24133795"]
[WhiteElo "2938"]
[BlackElo "3055"]
[Result "1-0"]
[Round "11"]
[TimeControl "180+2"]
[Date "2023.07.04"]
[WhiteClock "0:01:22"]
[BlackClock "0:01:22"]
[Board "4"]

1. Nf3 {[%clk 0:03:00]}  d5 {[%clk 0:02:59]} 2. g3 {[%clk 0:03:01]}  g6 {[%clk 0:02:59]} 3. Bg2 {[%clk 0:03:02]}  Bg7 {[%clk 0:03:00]} 4. d4 {[%clk 0:03:02]}  Nf6 {[%clk 0:02:58]} 5. c4 {[%clk 0:03:02]}  Nc6 {[%clk 0:02:58]} 6. cxd5 {[%clk 0:02:44]}  Nxd5 {[%clk 0:02:59]} 7. O-O {[%clk 0:02:44]}  Nb6 {[%clk 0:02:59]} 8. e3 {[%clk 0:02:45]}  O-O {[%clk 0:02:59]} 9. Nc3 {[%clk 0:02:45]}  e5 {[%clk 0:02:56]} 10. d5 {[%clk 0:02:40]}  Ne7 {[%clk 0:02:47]} 11. e4 {[%clk 0:02:38]}  Bd7 {[%clk 0:02:42]} 12. a4 {[%clk 0:02:26]}  a5 {[%clk 0:02:41]} 13. Qb3 {[%clk 0:02:26]}  c6 {[%clk 0:02:38]} 14. Be3 {[%clk 0:02:25]}  Nec8 {[%clk 0:02:34]} 15. Rfd1 {[%clk 0:02:25]}  cxd5 {[%clk 0:02:16]} 16. Nxd5 {[%clk 0:02:14]}  Nxd5 {[%clk 0:02:15]} 17. Qxd5 {[%clk 0:02:11]}  Nb6 {[%clk 0:01:38]} 18. Bxb6 {[%clk 0:02:11]}  Qxb6 {[%clk 0:01:37]} 19. Qxd7 {[%clk 0:02:11]}  Qxb2 {[%clk 0:01:36]} 20. Rab1 {[%clk 0:01:53]}  Qc2 {[%clk 0:01:35]} 21. Rxb7 {[%clk 0:01:41]}  Rad8 {[%clk 0:01:32]} 22. Qxd8 {[%clk 0:01:41]}  Rxd8 {[%clk 0:01:32]} 23. Rxd8+ {[%clk 0:01:41]}  Bf8 {[%clk 0:01:33]} 24. Rbb8 {[%clk 0:01:37]}  Kg7 {[%clk 0:01:32]} 25. Rxf8 {[%clk 0:01:33]}  Qd1+ {[%clk 0:01:33]} 26. Bf1 {[%clk 0:01:34]}  Qxf3 {[%clk 0:01:33]} 27. Bc4 {[%clk 0:01:30]}  Qxe4 {[%clk 0:01:29]} 28. Rxf7+ {[%clk 0:01:30]}  Kh6 {[%clk 0:01:30]} 29. Bf1 {[%clk 0:01:25]}  Qxa4 {[%clk 0:01:30]} 30. Rbb7 {[%clk 0:01:25]}  Qc6 {[%clk 0:01:27]} 31. Rxh7+ {[%clk 0:01:25]}  Kg5 {[%clk 0:01:28]} 32. Ra7 {[%clk 0:01:23]}  Qb6 {[%clk 0:01:26]} 33. Ra6 {[%clk 0:01:22]}  Qc5 {[%clk 0:01:22]} 34. Rha7 {[%clk 0:01:22]} 1-0


[Site "https://www.chess.com"]

[Event "Titled Tuesday Blitz July 4 Early 2023"]
[White "Mamedov, Rauf"]
[Black "Chigaev, Maksim"]
[WhiteFideId "13401653"]
[BlackFideId "4108116"]
[WhiteElo "3040"]
[BlackElo "2948"]
[Result "1-0"]
[Round "11"]
[TimeControl "180+2"]
[Date "2023.07.04"]
[WhiteClock "0:00:59"]
[BlackClock "0:00:03"]
[Board "5"]

1. e4 {[%clk 0:03:00]}  e6 {[%clk 0:02:59]} 2. d4 {[%clk 0:02:59]}  d5 {[%clk 0:03:00]} 3. Nd2 {[%clk 0:03:00]}  c5 {[%clk 0:02:55]} 4. Ngf3 {[%clk 0:03:00]}  Nf6 {[%clk 0:02:55]} 5. e5 {[%clk 0:03:00]}  Nfd7 {[%clk 0:02:55]} 6. c3 {[%clk 0:03:01]}  Nc6 {[%clk 0:02:55]} 7. Bd3 {[%clk 0:03:01]}  Be7 {[%clk 0:02:54]} 8. O-O {[%clk 0:02:58]}  h5 {[%clk 0:02:53]} 9. Re1 {[%clk 0:02:56]}  g5 {[%clk 0:02:51]} 10. dxc5 {[%clk 0:02:56]}  g4 {[%clk 0:02:52]} 11. Nd4 {[%clk 0:02:56]}  Ndxe5 {[%clk 0:02:52]} 12. Bb5 {[%clk 0:02:56]}  Bd7 {[%clk 0:02:53]} 13. N2b3 {[%clk 0:02:56]}  Ng6 {[%clk 0:02:52]} 14. Nxc6 {[%clk 0:02:50]}  Bxc6 {[%clk 0:02:31]} 15. Bd3 {[%clk 0:02:51]}  Qd7 {[%clk 0:01:56]} 16. Bxg6 {[%clk 0:02:37]}  fxg6 {[%clk 0:01:56]} 17. Nd4 {[%clk 0:02:34]}  O-O-O {[%clk 0:01:38]} 18. b4 {[%clk 0:01:57]}  e5 {[%clk 0:01:12]} 19. Rxe5 {[%clk 0:01:55]}  Bf6 {[%clk 0:01:13]} 20. Re1 {[%clk 0:01:48]}  Rhe8 {[%clk 0:01:03]} 21. Be3 {[%clk 0:01:44]}  Re4 {[%clk 0:01:02]} 22. a4 {[%clk 0:01:43]}  Bxd4 {[%clk 0:00:57]} 23. cxd4 {[%clk 0:01:42]}  Qf5 {[%clk 0:00:40]} 24. b5 {[%clk 0:01:42]}  Bd7 {[%clk 0:00:40]} 25. c6 {[%clk 0:01:42]}  bxc6 {[%clk 0:00:40]} 26. bxc6 {[%clk 0:01:43]}  Bxc6 {[%clk 0:00:41]} 27. Qd3 {[%clk 0:01:27]}  Rd6 {[%clk 0:00:20]} 28. Qa6+ {[%clk 0:01:21]}  Kd7 {[%clk 0:00:20]} 29. Qxa7+ {[%clk 0:01:21]}  Ke6 {[%clk 0:00:21]} 30. a5 {[%clk 0:01:10]}  h4 {[%clk 0:00:21]} 31. Qh7 {[%clk 0:01:04]}  h3 {[%clk 0:00:16]} 32. a6 {[%clk 0:01:01]}  hxg2 {[%clk 0:00:03]} 33. a7 {[%clk 0:00:59]} 1-0


[Site "https://www.chess.com"]

[Event "Titled Tuesday Blitz July 4 Early 2023"]
[White "Pranav, V"]
[Black "Nguyen, Ngoc Truong Son"]
[WhiteFideId "25060783"]
[BlackFideId "12401110"]
[WhiteElo "3011"]
[BlackElo "2919"]
[Result "0-1"]
[Round "11"]
[TimeControl "180+2"]
[Date "2023.07.04"]
[WhiteClock "0:00:00"]
[BlackClock "0:00:05"]
[Board "6"]

1. e4 {[%clk 0:03:00]}  d6 {[%clk 0:02:57]} 2. d4 {[%clk 0:03:00]}  g6 {[%clk 0:02:57]} 3. Nc3 {[%clk 0:03:01]}  Bg7 {[%clk 0:02:57]} 4. Bg5 {[%clk 0:03:01]}  c6 {[%clk 0:02:46]} 5. f4 {[%clk 0:02:56]}  Qb6 {[%clk 0:02:34]} 6. Nge2 {[%clk 0:02:53]}  Bg4 {[%clk 0:02:29]} 7. Rb1 {[%clk 0:02:30]}  Nd7 {[%clk 0:02:21]} 8. Qd3 {[%clk 0:02:23]}  Bxe2 {[%clk 0:02:13]} 9. Nxe2 {[%clk 0:02:23]}  e5 {[%clk 0:02:03]} 10. c3 {[%clk 0:02:16]}  h6 {[%clk 0:02:00]} 11. Bh4 {[%clk 0:02:12]}  exf4 {[%clk 0:01:47]} 12. Nxf4 {[%clk 0:02:09]}  g5 {[%clk 0:01:45]} 13. Nh5 {[%clk 0:01:58]}  Bxd4 {[%clk 0:01:45]} 14. Bg3 {[%clk 0:01:38]}  Be5 {[%clk 0:00:53]} 15. Bxe5 {[%clk 0:01:33]}  dxe5 {[%clk 0:00:54]} 16. Qd6 {[%clk 0:01:15]}  Qc5 {[%clk 0:00:45]} 17. Ng7+ {[%clk 0:01:04]}  Kd8 {[%clk 0:00:44]} 18. Qd3 {[%clk 0:00:53]}  Kc7 {[%clk 0:00:37]} 19. Be2 {[%clk 0:00:47]}  Rd8 {[%clk 0:00:28]} 20. b4 {[%clk 0:00:45]}  Qf8 {[%clk 0:00:25]} 21. Nf5 {[%clk 0:00:45]}  Nb6 {[%clk 0:00:16]} 22. Qe3 {[%clk 0:00:42]}  Ne7 {[%clk 0:00:16]} 23. O-O {[%clk 0:00:40]}  Nxf5 {[%clk 0:00:16]} 24. Rxf5 {[%clk 0:00:41]}  Qe7 {[%clk 0:00:17]} 25. Rbf1 {[%clk 0:00:29]}  Rhf8 {[%clk 0:00:17]} 26. h4 {[%clk 0:00:08]}  f6 {[%clk 0:00:17]} 27. hxg5 {[%clk 0:00:08]}  hxg5 {[%clk 0:00:18]} 28. Qf3 {[%clk 0:00:05]}  Rd6 {[%clk 0:00:16]} 29. Qe3 {[%clk 0:00:05]}  Rfd8 {[%clk 0:00:14]} 30. Qf3 {[%clk 0:00:03]}  Nd7 {[%clk 0:00:14]} 31. Bc4 {[%clk 0:00:04]}  a6 {[%clk 0:00:12]} 32. Bb3 {[%clk 0:00:04]}  Rh8 {[%clk 0:00:11]} 33. Qe3 {[%clk 0:00:03]}  Qh7 {[%clk 0:00:12]} 34. R5f3 {[%clk 0:00:02]}  Qh2+ {[%clk 0:00:11]} 35. Kf2 {[%clk 0:00:03]}  Qh4+ {[%clk 0:00:11]} 36. Kg1 {[%clk 0:00:02]}  g4 {[%clk 0:00:10]} 37. Rg3 {[%clk 0:00:02]}  Qh2+ {[%clk 0:00:05]} 38. Kf2 {[%clk 0:00:02]}  Rh3 {[%clk 0:00:04]} 39. Rxh3 {[%clk 0:00:02]}  gxh3 {[%clk 0:00:04]} 40. Qxh3 {[%clk 0:00:03]}  Qf4+ {[%clk 0:00:05]} 41. Qf3 {[%clk 0:00:03]}  Qxf3+ {[%clk 0:00:04]} 42. Kxf3 {[%clk 0:00:02]}  Rd3+ {[%clk 0:00:04]} 43. Kg4 {[%clk 0:00:03]}  Rxc3 {[%clk 0:00:04]} 44. Be6 {[%clk 0:00:03]}  Re3 {[%clk 0:00:04]} 45. Kf5 {[%clk 0:00:03]}  Re2 {[%clk 0:00:04]} 46. g4 {[%clk 0:00:03]}  Nf8 {[%clk 0:00:02]} 47. Bb3 {[%clk 0:00:03]}  Nh7 {[%clk 0:00:02]} 48. Bc4 {[%clk 0:00:02]}  Rc2 {[%clk 0:00:01]} 49. Bg8 {[%clk 0:00:02]}  Ng5 {[%clk 0:00:01]} 50. Kxf6 {[%clk 0:00:03]}  Nxe4+ {[%clk 0:00:01]} 51. Kxe5 {[%clk 0:00:03]}  Nd6 {[%clk 0:00:01]} 52. Bb3 {[%clk 0:00:03]}  Re2+ {[%clk 0:00:02]} 53. Kf4 {[%clk 0:00:03]}  Re4+ {[%clk 0:00:02]} 54. Kg5 {[%clk 0:00:03]}  Rxb4 {[%clk 0:00:03]} 55. Rh1 {[%clk 0:00:04]}  a5 {[%clk 0:00:04]} 56. Rh7+ {[%clk 0:00:02]}  Kb6 {[%clk 0:00:05]} 57. Bc2 {[%clk 0:00:02]}  Kc5 {[%clk 0:00:05]} 58. Kh5 {[%clk 0:00:02]}  Rb2 {[%clk 0:00:05]} 59. Bb3 {[%clk 0:00:02]}  b5 {[%clk 0:00:05]} 60. Rd7 {[%clk 0:00:02]}  a4 {[%clk 0:00:06]} 61. Bg8 {[%clk 0:00:02]}  Rh2+ {[%clk 0:00:06]} 62. Kg6 {[%clk 0:00:02]}  Rg2 {[%clk 0:00:06]} 63. Kh5 {[%clk 0:00:02]}  b4 {[%clk 0:00:06]} 64. Re7 {[%clk 0:00:00]}  b3 {[%clk 0:00:05]} 0-1


[Site "https://www.chess.com"]

[Event "Titled Tuesday Blitz July 4 Early 2023"]
[White "Harsha Bharathakoti"]
[Black "Lazavik, Denis"]
[WhiteFideId "5078776"]
[BlackFideId "13515110"]
[WhiteElo "2875"]
[BlackElo "3038"]
[Result "0-1"]
[Round "11"]
[TimeControl "180+2"]
[Date "2023.07.04"]
[WhiteClock "0:00:23"]
[BlackClock "0:00:46"]
[Board "10"]

1. Nf3 {[%clk 0:03:00]}  d5 {[%clk 0:02:59]} 2. g3 {[%clk 0:02:58]}  Nf6 {[%clk 0:02:58]} 3. Bg2 {[%clk 0:02:58]}  e6 {[%clk 0:02:59]} 4. O-O {[%clk 0:02:58]}  Be7 {[%clk 0:03:00]} 5. c4 {[%clk 0:02:59]}  O-O {[%clk 0:03:00]} 6. b3 {[%clk 0:02:59]}  d4 {[%clk 0:02:59]} 7. e3 {[%clk 0:02:59]}  c5 {[%clk 0:03:00]} 8. exd4 {[%clk 0:03:00]}  cxd4 {[%clk 0:03:00]} 9. Ne5 {[%clk 0:03:00]}  Qc7 {[%clk 0:02:55]} 10. Re1 {[%clk 0:02:54]}  Nfd7 {[%clk 0:02:43]} 11. Nxd7 {[%clk 0:02:47]}  Bxd7 {[%clk 0:02:41]} 12. Bb2 {[%clk 0:02:43]}  Nc6 {[%clk 0:02:41]} 13. d3 {[%clk 0:02:41]}  e5 {[%clk 0:02:39]} 14. a3 {[%clk 0:02:39]}  a5 {[%clk 0:02:39]} 15. Nd2 {[%clk 0:02:39]}  Rfe8 {[%clk 0:02:40]} 16. Rc1 {[%clk 0:02:28]}  b6 {[%clk 0:02:34]} 17. Ne4 {[%clk 0:02:20]}  f5 {[%clk 0:02:31]} 18. Nd2 {[%clk 0:02:18]}  Rad8 {[%clk 0:02:31]} 19. Qh5 {[%clk 0:01:58]}  Bf6 {[%clk 0:02:26]} 20. Bd5+ {[%clk 0:01:44]}  Kh8 {[%clk 0:02:26]} 21. Bf7 {[%clk 0:01:44]}  Rf8 {[%clk 0:02:18]} 22. Bg6 {[%clk 0:01:45]}  h6 {[%clk 0:02:19]} 23. Nf3 {[%clk 0:01:26]}  Ne7 {[%clk 0:02:16]} 24. b4 {[%clk 0:01:09]}  Bc6 {[%clk 0:01:51]} 25. Nd2 {[%clk 0:00:55]}  Bg5 {[%clk 0:01:35]} 26. Rc2 {[%clk 0:00:46]}  Nxg6 {[%clk 0:01:12]} 27. Qxg6 {[%clk 0:00:46]}  Be8 {[%clk 0:01:10]} 28. Qe6 {[%clk 0:00:46]}  Ba4 {[%clk 0:01:10]} 29. h4 {[%clk 0:00:37]}  Bf6 {[%clk 0:01:03]} 30. Rcc1 {[%clk 0:00:34]}  Bd7 {[%clk 0:01:01]} 31. Qd5 {[%clk 0:00:33]}  Bc6 {[%clk 0:00:51]} 32. Qe6 {[%clk 0:00:32]}  Rde8 {[%clk 0:00:51]} 33. Qxf5 {[%clk 0:00:31]}  Bg5 {[%clk 0:00:52]} 34. Qxf8+ {[%clk 0:00:31]}  Rxf8 {[%clk 0:00:52]} 35. hxg5 {[%clk 0:00:32]}  Qf7 {[%clk 0:00:53]} 36. Re2 {[%clk 0:00:24]}  Qh5 {[%clk 0:00:52]} 37. Re4 {[%clk 0:00:25]}  Bxe4 {[%clk 0:00:46]} 38. Nxe4 {[%clk 0:00:25]}  Qe2 {[%clk 0:00:46]} 39. gxh6 {[%clk 0:00:23]}  Qxb2 {[%clk 0:00:46]} 0-1


[Site "https://www.chess.com"]

[Event "Titled Tuesday Blitz July 4 Early 2023"]
[White "Deac, Bogdan-Daniel"]
[Black "demon64fields"]
[WhiteFideId "1226380"]
[WhiteElo "3008"]
[BlackElo "2832"]
[Result "0-1"]
[Round "11"]
[TimeControl "180+2"]
[Date "2023.07.04"]
[WhiteClock "0:02:23"]
[BlackClock "0:01:38"]
[Board "11"]

1. b3 {[%clk 0:03:00]}  Nf6 {[%clk 0:02:58]} 2. Bb2 {[%clk 0:03:00]}  d5 {[%clk 0:02:59]} 3. e3 {[%clk 0:03:00]}  Bf5 {[%clk 0:02:59]} 4. c4 {[%clk 0:03:00]}  e6 {[%clk 0:02:59]} 5. cxd5 {[%clk 0:03:01]}  exd5 {[%clk 0:03:00]} 6. Qf3 {[%clk 0:03:01]}  Bg6 {[%clk 0:02:53]} 7. Bxf6 {[%clk 0:03:02]}  gxf6 {[%clk 0:02:54]} 8. Ne2 {[%clk 0:03:00]}  c6 {[%clk 0:02:54]} 9. Nf4 {[%clk 0:02:58]}  Nd7 {[%clk 0:02:53]} 10. h4 {[%clk 0:02:57]}  Qa5 {[%clk 0:02:33]} 11. Qd1 {[%clk 0:02:56]}  Bd6 {[%clk 0:02:23]} 12. h5 {[%clk 0:02:55]}  Bxb1 {[%clk 0:02:20]} 13. Qxb1 {[%clk 0:02:55]}  Bxf4 {[%clk 0:02:20]} 14. exf4 {[%clk 0:02:56]}  O-O-O {[%clk 0:02:21]} 15. b4 {[%clk 0:02:51]}  Rde8+ {[%clk 0:02:18]} 16. Kd1 {[%clk 0:02:51]}  Qb6 {[%clk 0:02:15]} 17. Qf5 {[%clk 0:02:45]}  Qxf2 {[%clk 0:02:13]} 18. Bd3 {[%clk 0:02:45]}  Qxg2 {[%clk 0:02:11]} 19. Kc2 {[%clk 0:02:45]}  Qf2 {[%clk 0:02:08]} 20. Rhg1 {[%clk 0:02:45]}  Qd4 {[%clk 0:02:03]} 21. Rab1 {[%clk 0:02:41]}  h6 {[%clk 0:01:57]} 22. a3 {[%clk 0:02:37]}  Kc7 {[%clk 0:01:56]} 23. Rbe1 {[%clk 0:02:35]}  a5 {[%clk 0:01:54]} 24. Rxe8 {[%clk 0:02:27]}  Rxe8 {[%clk 0:01:54]} 25. Rg7 {[%clk 0:02:28]}  Re7 {[%clk 0:01:51]} 26. bxa5 {[%clk 0:02:26]}  Qa4+ {[%clk 0:01:51]} 27. Kb2 {[%clk 0:02:25]}  Qxa5 {[%clk 0:01:51]} 28. Bc2 {[%clk 0:02:25]}  Qxd2 {[%clk 0:01:49]} 29. Rh7 {[%clk 0:02:25]}  Qd4+ {[%clk 0:01:41]} 30. Ka2 {[%clk 0:02:23]}  Nc5 {[%clk 0:01:38]} 0-1


[Site "https://www.chess.com"]

[Event "Titled Tuesday Blitz July 4 Early 2023"]
[White "Aravindh, Chithambaram VR."]
[Black "benny_aizenberg"]
[WhiteFideId "5072786"]
[WhiteElo "2922"]
[BlackElo "2683"]
[Result "1-0"]
[Round "11"]
[TimeControl "180+2"]
[Date "2023.07.04"]
[WhiteClock "0:00:07"]
[BlackClock "0:00:05"]
[Board "14"]

1. b3 {[%clk 0:03:00]}  e5 {[%clk 0:02:54]} 2. Bb2 {[%clk 0:03:01]}  Nc6 {[%clk 0:02:55]} 3. c4 {[%clk 0:03:01]}  f5 {[%clk 0:02:54]} 4. Nf3 {[%clk 0:02:55]}  e4 {[%clk 0:02:49]} 5. Nd4 {[%clk 0:02:55]}  Qf6 {[%clk 0:02:40]} 6. e3 {[%clk 0:02:50]}  Bc5 {[%clk 0:02:40]} 7. Nc3 {[%clk 0:02:40]}  Nxd4 {[%clk 0:02:16]} 8. exd4 {[%clk 0:02:38]}  Qxd4 {[%clk 0:02:12]} 9. Qe2 {[%clk 0:02:38]}  Nf6 {[%clk 0:02:09]} 10. Na4 {[%clk 0:02:26]}  Qd6 {[%clk 0:02:09]} 11. Nxc5 {[%clk 0:02:25]}  Qxc5 {[%clk 0:02:10]} 12. Bxf6 {[%clk 0:02:22]}  gxf6 {[%clk 0:02:10]} 13. Qh5+ {[%clk 0:02:21]}  Kd8 {[%clk 0:02:05]} 14. Be2 {[%clk 0:02:16]}  b6 {[%clk 0:01:58]} 15. O-O {[%clk 0:02:12]}  Bb7 {[%clk 0:01:58]} 16. Kh1 {[%clk 0:02:09]}  Qe7 {[%clk 0:01:56]} 17. f3 {[%clk 0:02:07]}  Rg8 {[%clk 0:01:41]} 18. Qxf5 {[%clk 0:02:06]}  Rg5 {[%clk 0:01:40]} 19. Qf4 {[%clk 0:02:05]}  f5 {[%clk 0:01:34]} 20. fxe4 {[%clk 0:02:01]}  Bxe4 {[%clk 0:01:34]} 21. Bf3 {[%clk 0:02:01]}  Bxf3 {[%clk 0:01:18]} 22. Qxf3 {[%clk 0:02:02]}  Rb8 {[%clk 0:01:17]} 23. Rae1 {[%clk 0:02:02]}  Qf6 {[%clk 0:01:17]} 24. Re2 {[%clk 0:01:10]}  d6 {[%clk 0:01:02]} 25. Qc6 {[%clk 0:01:08]}  Qf7 {[%clk 0:00:59]} 26. Rfe1 {[%clk 0:01:07]}  Rg8 {[%clk 0:00:58]} 27. d4 {[%clk 0:00:58]}  Qd7 {[%clk 0:00:56]} 28. Qd5 {[%clk 0:00:57]}  Rf8 {[%clk 0:00:55]} 29. Re6 {[%clk 0:00:55]}  Qf7 {[%clk 0:00:41]} 30. Qc6 {[%clk 0:00:36]}  Qd7 {[%clk 0:00:40]} 31. Qf3 {[%clk 0:00:37]}  Qf7 {[%clk 0:00:38]} 32. c5 {[%clk 0:00:32]}  bxc5 {[%clk 0:00:32]} 33. dxc5 {[%clk 0:00:33]}  Kd7 {[%clk 0:00:25]} 34. c6+ {[%clk 0:00:27]}  Kd8 {[%clk 0:00:25]} 35. Qe3 {[%clk 0:00:23]}  Rb6 {[%clk 0:00:23]} 36. Qg5+ {[%clk 0:00:12]}  Kc8 {[%clk 0:00:24]} 37. Qxf5 {[%clk 0:00:07]}  Rxc6 {[%clk 0:00:05]} 38. Rf6+ {[%clk 0:00:07]} 1-0


[Site "https://www.chess.com"]

[Event "Titled Tuesday Blitz July 4 Early 2023"]
[White "Madaminov, Mukhiddin"]
[Black "Hambleton, Aman"]
[WhiteFideId "14210703"]
[BlackFideId "2606577"]
[WhiteElo "3002"]
[BlackElo "2782"]
[Result "0-1"]
[Round "11"]
[TimeControl "180+2"]
[Date "2023.07.04"]
[WhiteClock "0:01:13"]
[BlackClock "0:00:03"]
[Board "16"]

1. e4 {[%clk 0:03:00]}  b6 {[%clk 0:02:56]} 2. d4 {[%clk 0:03:00]}  Bb7 {[%clk 0:02:56]} 3. Nc3 {[%clk 0:03:01]}  e6 {[%clk 0:02:57]} 4. a3 {[%clk 0:02:58]}  g6 {[%clk 0:02:56]} 5. h4 {[%clk 0:02:58]}  h6 {[%clk 0:02:57]} 6. g3 {[%clk 0:02:54]}  Bg7 {[%clk 0:02:56]} 7. Bg2 {[%clk 0:02:53]}  Ne7 {[%clk 0:02:53]} 8. Nf3 {[%clk 0:02:50]}  d6 {[%clk 0:02:45]} 9. O-O {[%clk 0:02:50]}  a6 {[%clk 0:02:46]} 10. a4 {[%clk 0:02:48]}  Nd7 {[%clk 0:02:25]} 11. Re1 {[%clk 0:02:44]}  O-O {[%clk 0:02:12]} 12. Be3 {[%clk 0:02:44]}  f5 {[%clk 0:01:50]} 13. exf5 {[%clk 0:02:34]}  Nxf5 {[%clk 0:01:49]} 14. Bf4 {[%clk 0:02:34]}  Bxf3 {[%clk 0:00:32]} 15. Qxf3 {[%clk 0:02:34]}  Nxd4 {[%clk 0:00:15]} 16. Qd3 {[%clk 0:02:35]}  g5 {[%clk 0:00:05]} 17. hxg5 {[%clk 0:02:24]}  hxg5 {[%clk 0:00:06]} 18. Bd2 {[%clk 0:02:10]}  Ne5 {[%clk 0:00:01]} 19. Rxe5 {[%clk 0:02:08]}  dxe5 {[%clk 0:00:01]} 20. Re1 {[%clk 0:02:05]}  Rc8 {[%clk 0:00:01]} 21. Ne4 {[%clk 0:02:03]}  Nf3+ {[%clk 0:00:01]} 22. Bxf3 {[%clk 0:01:58]}  Qxd3 {[%clk 0:00:01]} 23. cxd3 {[%clk 0:01:59]}  Rxf3 {[%clk 0:00:02]} 24. Be3 {[%clk 0:01:58]}  g4 {[%clk 0:00:02]} 25. b4 {[%clk 0:01:56]}  Bf8 {[%clk 0:00:01]} 26. b5 {[%clk 0:01:56]}  axb5 {[%clk 0:00:02]} 27. axb5 {[%clk 0:01:57]}  Be7 {[%clk 0:00:02]} 28. Kg2 {[%clk 0:01:57]}  Rf7 {[%clk 0:00:01]} 29. Rc1 {[%clk 0:01:57]}  Rb8 {[%clk 0:00:01]} 30. Rxc7 {[%clk 0:01:56]}  Bc5 {[%clk 0:00:02]} 31. Rc6 {[%clk 0:01:51]}  Bxe3 {[%clk 0:00:02]} 32. fxe3 {[%clk 0:01:51]}  Ra8 {[%clk 0:00:03]} 33. Rxe6 {[%clk 0:01:42]}  Ra2+ {[%clk 0:00:03]} 34. Kg1 {[%clk 0:01:43]}  Ra1+ {[%clk 0:00:03]} 35. Kg2 {[%clk 0:01:44]}  Ra2+ {[%clk 0:00:03]} 36. Kh1 {[%clk 0:01:44]}  Rh7+ {[%clk 0:00:03]} 37. Kg1 {[%clk 0:01:43]}  Rc7 {[%clk 0:00:03]} 38. Rg6+ {[%clk 0:01:25]}  Kf7 {[%clk 0:00:02]} 39. Rf6+ {[%clk 0:01:25]}  Ke7 {[%clk 0:00:02]} 40. Rf1 {[%clk 0:01:25]}  Rcc2 {[%clk 0:00:02]} 41. Nf2 {[%clk 0:01:26]}  Rab2 {[%clk 0:00:02]} 42. e4 {[%clk 0:01:15]}  Rxb5 {[%clk 0:00:01]} 43. Nxg4 {[%clk 0:01:15]}  Rbb2 {[%clk 0:00:02]} 44. Ne3 {[%clk 0:01:15]}  Re2 {[%clk 0:00:02]} 45. Nc4 {[%clk 0:01:13]}  Rg2+ {[%clk 0:00:01]} 46. Kh1 {[%clk 0:01:12]}  Rh2+ {[%clk 0:00:02]} 47. Kg1 {[%clk 0:01:13]}  Rbg2# {[%clk 0:00:03]} 0-1


[Site "https://www.chess.com"]